bitfinex/quotes_BTCUSD_20230404
["timestamp","ask_amount","ask_price","bid_price","bid_amount"]
[1680649248549,0.02299,28197.0,28196.0,0.98896956]
[1680649248790,0.02299,28197.0,28196.0,1.01696956]
[1680649249018,0.02299,28197.0,28196.0,0.98896956]
[1680649249341,0.02299,28197.0,28196.0,1.01696956]
[1680649249587,0.02299,28197.0,28196.0,0.98896956]
[1680649249797,0.02299,28197.0,28196.0,1.01696956]
[1680649250364,0.02299,28197.0,28196.0,1.1015479]
[1680649250763,0.02299,28197.0,28196.0,1.0735479]
[1680649250985,0.02299,28197.0,28196.0,1.1015479]
[1680649251196,0.02299,28197.0,28196.0,1.0735479]
[1680649251421,0.02299,28197.0,28196.0,1.1015479]
[1680649251868,0.02299,28197.0,28196.0,0.8962479]
[1680649252069,0.02299,28197.0,28196.0,0.9242479]
[1680649252302,0.02299,28197.0,28196.0,0.98082625]
[1680649252514,0.02299,28197.0,28196.0,1.00882625]
[1680649254621,0.02299,28197.0,28196.0,0.95032625]
[1680649254846,0.436285,28197.0,28196.0,0.49333874]
[1680649255075,0.436285,28197.0,28196.0,0.49345874]
[1680649255305,0.520085,28197.0,28196.0,0.17901669]
[1680649255537,0.520085,28197.0,28196.0,0.16521844]
[1680649255747,0.520385,28197.0,28196.0,0.12274918]
[1680649256431,0.520385,28197.0,28196.0,0.09474918]
[1680649256659,0.520385,28197.0,28196.0,0.12274918]
[1680649256896,0.520385,28197.0,28196.0,0.16521844]
[1680649258267,0.520385,28197.0,28196.0,0.25015644]
[1680649258500,0.520385,28197.0,28196.0,0.16521844]
[1680649258714,0.51998961,28197.0,28196.0,0.24035698]
[1680649258940,0.51998961,28197.0,28196.0,0.24053698]
[1680649259390,0.51998961,28197.0,28196.0,0.08511854]
[1680649259590,0.51998961,28197.0,28196.0,0.21235698]
[1680649259867,0.51998961,28197.0,28196.0,0.21247698]
[1680649260200,0.51998961,28197.0,28196.0,0.21947698]
[1680649260504,0.51998961,28197.0,28196.0,0.22237698]
[1680649260623,0.51998961,28197.0,28196.0,0.21537698]
[1680649260848,0.51998961,28197.0,28196.0,0.23537698]
[1680649261107,0.51998961,28197.0,28196.0,0.23543698]
[1680649261362,0.51998961,28197.0,28196.0,0.21543698]
[1680649261530,0.51998961,28197.0,28196.0,0.21537698]
[1680649262117,0.51998961,28197.0,28196.0,0.23537698]
[1680649262333,0.51998961,28197.0,28196.0,0.23543698]
[1680649262753,0.51998961,28197.0,28196.0,0.15049844]
[1680649262983,0.51998961,28197.0,28196.0,0.15031844]
[1680649263208,0.51998961,28197.0,28196.0,0.13031844]
[1680649263424,0.51998961,28197.0,28196.0,0.13731844]
[1680649263642,0.51998961,28197.0,28196.0,0.13031844]
[1680649263867,0.51998961,28197.0,28196.0,0.15031844]
[1680649264571,0.51998961,28197.0,28196.0,0.13031844]
[1680649264773,0.51998961,28197.0,28196.0,0.22223904]
[1680649265001,0.51998961,28197.0,28196.0,0.21535904]
[1680649266062,0.51998961,28197.0,28196.0,0.23535904]
[1680649266302,0.51998961,28197.0,28196.0,0.21541904]
[1680649266522,0.51998961,28197.0,28196.0,0.23535904]
[1680649266739,0.51998961,28197.0,28196.0,0.21541904]
[1680649266959,0.51998961,28197.0,28196.0,0.23535904]
[1680649267186,0.51998961,28197.0,28196.0,0.21541904]
[1680649267405,0.51998961,28197.0,28196.0,0.23535904]
[1680649267633,0.51998961,28197.0,28196.0,0.23541904]
[1680649267861,0.51998961,28197.0,28196.0,0.1080006]
[1680649268076,0.51998961,28197.0,28196.0,0.0229]
[1680649268301,0.51998961,28197.0,28196.0,0.0029]
[1680649269175,0.51998961,28197.0,28196.0,0.0229]
[1680649269458,0.51998961,28197.0,28196.0,0.0029]
[1680649269651,0.51998961,28197.0,28196.0,0.0229]
[1680649269963,0.51998961,28197.0,28196.0,0.0029]
[1680649270172,0.51998961,28197.0,28196.0,0.0229]
[1680649270400,0.51998961,28197.0,28196.0,0.0029]
[1680649270617,0.51998961,28197.0,28196.0,0.0229]
[1680649270821,0.51998961,28197.0,28196.0,0.0029]
[1680649271038,0.51998961,28197.0,28196.0,0.0229]
[1680649271980,0.51998961,28197.0,28196.0,0.0029]
[1680649272412,0.51998961,28197.0,28196.0,0.0229]
[1680649272619,0.51998961,28197.0,28196.0,0.0029]
[1680649272843,0.51998961,28197.0,28196.0,0.0229]
[1680649273074,0.51998961,28197.0,28196.0,0.0029]
[1680649273276,0.51998961,28197.0,28196.0,0.0229]
[1680649273613,0.51998961,28197.0,28196.0,0.0029]
[1680649273836,0.51998961,28197.0,28196.0,0.0229]
[1680649274030,0.51998961,28197.0,28196.0,0.0029]
[1680649274911,0.51998961,28197.0,28196.0,0.0229]
[1680649275119,0.51998961,28197.0,28196.0,0.0029]
[1680649275476,0.51998961,28197.0,28196.0,0.0229]
[1680649275705,0.51998961,28197.0,28196.0,0.0029]
[1680649275903,0.51998961,28197.0,28196.0,0.0229]
[1680649276399,0.51998961,28197.0,28196.0,0.0029]
[1680649278045,0.51998961,28197.0,28196.0,0.0159]
[1680649280030,0.51998961,28197.0,28196.0,0.049828]
[1680649280485,0.51998961,28197.0,28196.0,0.036828]
[1680649280697,0.51998961,28197.0,28196.0,0.049828]
[1680649282380,0.5199211,28197.0,28196.0,0.049828]
[1680649291276,0.1066261,28197.0,28196.0,0.049828]
[1680649291505,0.0228261,28197.0,28196.0,0.1507076]
[1680649291693,0.0228261,28197.0,28196.0,0.1907076]
[1680649291953,0.0228261,28197.0,28196.0,0.1988076]
[1680649292858,0.0228261,28197.0,28196.0,0.1488076]
[1680649294459,0.0228261,28197.0,28196.0,0.27622604]
[1680649295326,0.0228261,28197.0,28196.0,0.1488076]
[1680649296283,0.0228261,28197.0,28196.0,0.19130544]
[1680649298183,0.0228261,28197.0,28196.0,0.36046213]
[1680649298669,0.0228261,28197.0,28196.0,0.23304369]
[1680649299166,0.0228261,28197.0,28196.0,0.36050336]
[1680649299286,0.0228261,28197.0,28196.0,0.19134667]
[1680649299806,0.0228261,28197.0,28196.0,0.36050336]
[1680649300358,0.0228261,28197.0,28196.0,0.44448955]
[1680649300579,0.0228261,28197.0,28196.0,0.27533286]
[1680649301238,0.0228261,28197.0,28196.0,0.63004342]
[1680649301820,0.0228261,28197.0,28196.0,0.61704342]
[1680649302043,0.0228261,28197.0,28196.0,0.64504342]
[1680649302255,0.0228261,28197.0,28196.0,0.61704342]
[1680649302681,0.0228261,28197.0,28196.0,0.64504342]
[1680649304741,0.0228261,28197.0,28196.0,0.61704342]
[1680649304954,0.0228261,28197.0,28196.0,0.64304342]
[1680649306706,0.52372161,28197.0,28196.0,0.27237386]
[1680649306960,0.52372161,28197.0,28196.0,0.27349198]
[1680649306961,0.26598872,28197.0,28196.0,0.27349198]
[1680649307184,0.54944961,28197.0,28196.0,0.060928]
[1680649307400,0.59341861,28197.0,28196.0,0.060928]
[1680649307659,0.53881061,28197.0,28196.0,0.060928]
[1680649307886,0.53881061,28197.0,28196.0,0.034928]
[1680649308104,0.55144961,28197.0,28196.0,0.034928]
[1680649308999,0.54081061,28197.0,28196.0,0.034928]
[1680649315551,0.54043483,28197.0,28196.0,0.034928]
[1680649324980,0.54043483,28197.0,28196.0,0.0081]
[1680649337713,0.54034657,28197.0,28196.0,0.0081]
[1680649339655,0.54743957,28197.0,28196.0,0.0081]
[1680649344182,0.55807857,28197.0,28196.0,0.0081]
[1680649344391,0.54743957,28197.0,28196.0,0.0081]
[1680649345224,0.18265506,28197.0,28196.0,0.0081]
[1680649345431,0.97444062,28197.0,28196.0,0.0081]
[1680649345580,0.3727,28195.0,28191.0,0.21274398]
[1680649345861,0.0751,28192.0,28191.0,0.08520769]
[1680649346246,0.84098477,28192.0,28191.0,0.08520769]
[1680649346462,0.84098477,28192.0,28191.0,0.08620769]
[1680649346676,0.84098477,28192.0,28191.0,0.08520769]
[1680649346905,0.84598477,28192.0,28191.0,0.08520769]
[1680649348419,0.84598477,28192.0,28191.0,0.00018]
[1680649348647,0.0755,28191.0,28190.0,0.21274398]
[1680649348859,0.1504,28191.0,28190.0,0.21274398]
[1680649349303,0.1504,28191.0,28190.0,0.01446215]
[1680649349515,0.1504,28191.0,28190.0,0.01546215]
[1680649349735,0.1504,28191.0,28190.0,0.001]
[1680649350227,0.1504,28191.0,28190.0,0.0171]
[1680649350446,0.1504,28191.0,28190.0,0.0161]
[1680649350900,0.24205848,28191.0,28190.0,0.0171]
[1680649351862,0.1504,28191.0,28190.0,0.0161]
[1680649352076,0.1554,28191.0,28190.0,0.0161]
[1680649352959,0.1554,28191.0,28190.0,0.032063]
[1680649353187,0.005,28191.0,28190.0,0.032063]
[1680649353407,0.005,28191.0,28190.0,0.082063]
[1680649353667,0.005,28191.0,28190.0,0.0661]
[1680649353896,0.44286615,28193.0,28190.0,0.0661]
[1680649355227,0.001,28191.0,28190.0,0.0741]
[1680649355459,0.44286615,28193.0,28190.0,0.0661]
[1680649355655,0.44386615,28193.0,28190.0,0.0741]
[1680649355859,0.44286615,28193.0,28190.0,0.0661]
[1680649356210,0.001,28191.0,28190.0,0.0741]
[1680649356441,0.44286615,28193.0,28190.0,0.0661]
[1680649356635,0.44386615,28193.0,28190.0,0.0741]
[1680649356852,0.44286615,28193.0,28190.0,0.0661]
[1680649357070,0.001,28191.0,28190.0,0.0741]
[1680649357743,0.001,28191.0,28190.0,0.090063]
[1680649358332,0.36736615,28193.0,28190.0,0.20948012]
[1680649358544,0.36836615,28193.0,28190.0,0.21748012]
[1680649358760,0.36736615,28193.0,28190.0,0.20948012]
[1680649359184,0.001,28191.0,28190.0,0.21748012]
[1680649359398,0.36736615,28193.0,28190.0,0.3795258]
[1680649359636,0.36836615,28193.0,28191.0,0.0849413]
[1680649359852,0.36736615,28193.0,28191.0,0.0849413]
[1680649360310,0.36736615,28193.0,28192.0,0.0174]
[1680649361939,0.37236615,28193.0,28192.0,0.0174]
[1680649369931,0.44786615,28193.0,28192.0,0.0174]
[1680649370477,0.44775203,28193.0,28192.0,0.0174]
[1680649370602,0.44756615,28193.0,28192.0,0.0174]
[1680649380536,0.0805,28193.0,28192.0,0.0174]
[1680649382609,0.0805,28193.0,28192.0,0.1023413]
[1680649383509,0.0805,28193.0,28192.0,0.0174]
[1680649383744,0.0805,28193.0,28192.0,0.1023413]
[1680649383959,0.53861662,28193.0,28192.0,0.0174]
[1680649386155,0.53861662,28193.0,28192.0,0.1023413]
[1680649387836,0.53861662,28193.0,28192.0,0.0174]
[1680649388220,0.53861662,28193.0,28192.0,0.1023413]
[1680649388440,0.53361662,28193.0,28192.0,0.1023413]
[1680649388725,0.53861662,28193.0,28192.0,0.1023413]
[1680649389572,0.53361662,28193.0,28192.0,0.1023413]
[1680649390416,0.53861662,28193.0,28192.0,0.14481712]
[1680649393236,0.53861662,28193.0,28192.0,0.14481712]
[1680649393675,0.53850812,28193.0,28192.0,0.14481712]
[1680649394603,0.0803915,28193.0,28192.0,0.3148628]
[1680649394808,0.0803915,28193.0,28192.0,0.3149228]
[1680649395258,0.0803915,28193.0,28192.0,0.18744568]
[1680649398732,0.0803915,28193.0,28192.0,0.14498845]
[1680649398955,0.0803915,28193.0,28192.0,0.18744568]
[1680649399376,0.0803915,28193.0,28192.0,0.20340668]
[1680649400076,0.005,28193.0,28192.0,0.20340668]
[1680649400292,0.005,28193.0,28192.0,0.18744568]
[1680649401894,0.42451462,28195.0,28192.0,0.18744568]
[1680649402120,0.42451462,28195.0,28193.0,0.21263562]
[1680649402682,0.42451462,28195.0,28193.0,0.03505425]
[1680649402884,0.42451462,28195.0,28193.0,0.16263562]
[1680649403085,0.42951462,28195.0,28194.0,0.0285]
[1680649403291,0.72951462,28195.0,28194.0,0.0285]
[1680649404124,0.72451462,28195.0,28194.0,0.0285]
[1680649404313,0.73151462,28195.0,28194.0,0.0295]
[1680649410040,0.38277588,28195.0,28194.0,0.0295]
[1680649412378,0.77425305,28195.0,28194.0,0.0295]
[1680649412616,0.91545516,28195.0,28194.0,0.0295]
[1680649412831,2.06657116,28195.0,28194.0,0.0295]
[1680649414334,2.42128172,28195.0,28194.0,0.0295]
[1680649415354,2.79398172,28195.0,28194.0,0.0295]
[1680649417992,2.79398172,28195.0,28194.0,0.001]
[1680649420349,2.70458061,28195.0,28194.0,0.001]
[1680649424702,2.31310344,28195.0,28194.0,0.001]
[1680649424897,2.18551056,28195.0,28194.0,0.001]
[1680649425254,2.23830856,28195.0,28194.0,0.001]
[1680649426907,2.65055064,28195.0,28194.0,0.001]
[1680649427516,2.65055064,28195.0,28191.0,0.1914003]
[1680649427844,0.7406262,28194.0,28193.0,0.0174]
[1680649428073,0.7933062,28194.0,28193.0,0.0174]
[1680649428235,0.7933692,28194.0,28193.0,0.0174]
[1680649429821,0.9443692,28194.0,28193.0,0.0174]
[1680649430613,0.9493692,28194.0,28193.0,0.0174]
[1680649431405,0.9443692,28194.0,28193.0,0.0174]
[1680649431638,0.9493692,28194.0,28193.0,0.0174]
[1680649431858,0.9443692,28194.0,28193.0,0.0174]
[1680649432058,0.8966262,28194.0,28193.0,0.0174]
[1680649432660,0.39091564,28194.0,28193.0,0.0174]
[1680649432862,0.38591564,28194.0,28193.0,0.0174]
[1680649433691,0.39091564,28194.0,28193.0,0.0174]
[1680649435909,0.39109121,28194.0,28193.0,0.0174]
[1680649436117,0.39091564,28194.0,28193.0,0.0174]
[1680649436333,0.005,28194.0,28193.0,0.0633182]
[1680649436545,0.005,28194.0,28193.0,0.19086982]
[1680649436785,0.005,28194.0,28193.0,0.19092982]
[1680649437657,0.005,28194.0,28193.0,0.19104982]
[1680649437869,1.0756,28195.0,28193.0,0.19104982]
[1680649438102,1.0756,28195.0,28194.0,0.08503337]
[1680649438319,1.07577557,28195.0,28194.0,0.10099337]
[1680649438545,1.0756,28195.0,28194.0,0.10111337]
[1680649438750,1.0756,28195.0,28194.0,0.11791337]
[1680649438954,1.0756,28195.0,28194.0,0.11797337]
[1680649439364,1.0756,28195.0,28194.0,0.11897337]
[1680649440003,1.0756,28195.0,28194.0,0.27323867]
[1680649440217,1.0756,28195.0,28194.0,0.14568705]
[1680649441562,1.0756,28195.0,28194.0,0.1882053]
[1680649445578,1.0756,28195.0,28194.0,0.27320216]
[1680649447124,1.0756,28195.0,28194.0,0.14565054]
[1680649449511,1.0756,28195.0,28194.0,0.11893686]
[1680649451915,1.07548102,28195.0,28194.0,0.11875686]
[1680649454190,1.5112665,28195.0,28194.0,0.11875686]
[1680649454651,1.5112665,28195.0,28194.0,0.03376]
[1680649455569,1.15098102,28195.0,28194.0,0.0178]
[1680649455788,1.59849629,28195.0,28194.0,0.0178]
[1680649456209,1.65079629,28195.0,28194.0,0.0178]
[1680649456450,1.59849629,28195.0,28194.0,0.0178]
[1680649456709,1.59849629,28195.0,28194.0,0.0168]
[1680649456928,1.95820685,28195.0,28194.0,0.0168]
[1680649457144,2.01230985,28195.0,28194.0,0.0168]
[1680649458471,2.00944285,28195.0,28194.0,0.0168]
[1680649459602,1.95820685,28195.0,28194.0,0.0168]
[1680649460261,2.01090185,28195.0,28194.0,0.0168]
[1680649461183,1.95820685,28195.0,28194.0,0.0168]
[1680649461375,2.01199685,28195.0,28194.0,0.0168]
[1680649461839,1.95820685,28195.0,28194.0,0.0168]
[1680649462066,2.00960685,28195.0,28194.0,0.0168]
[1680649462285,1.56209158,28195.0,28194.0,0.0168]
[1680649462515,1.93479158,28195.0,28194.0,0.0168]
[1680649462733,2.01029158,28195.0,28194.0,0.0168]
[1680649462956,2.01046715,28195.0,28194.0,0.0168]
[1680649463234,2.46164329,28195.0,28194.0,0.0168]
[1680649463455,2.36723054,28195.0,28194.0,0.0168]
[1680649463909,2.607993,28195.0,28194.0,0.0168]
[1680649465653,2.36723054,28195.0,28194.0,0.0168]
[1680649471439,2.31583054,28195.0,28194.0,0.0168]
[1680649471864,2.36907454,28195.0,28194.0,0.0168]
[1680649472080,2.36962154,28195.0,28194.0,0.0168]
[1680649473048,2.31583054,28195.0,28194.0,0.0168]
[1680649476261,2.36689854,28195.0,28194.0,0.0168]
[1680649476466,2.31571271,28195.0,28194.0,0.0168]
[1680649476666,2.31553714,28195.0,28194.0,0.0168]
[1680649476878,2.31571271,28195.0,28194.0,0.0168]
[1680649477122,2.31553714,28195.0,28194.0,0.0168]
[1680649479876,2.24003714,28195.0,28194.0,0.0168]
[1680649483911,2.24021271,28195.0,28194.0,0.0168]
[1680649484115,2.24003714,28195.0,28194.0,0.0168]
[1680649486760,2.24021271,28195.0,28194.0,0.0168]
[1680649487604,2.24003714,28195.0,28194.0,0.0168]
[1680649491391,2.24016302,28195.0,28194.0,0.0168]
[1680649491601,2.24021271,28195.0,28194.0,0.0168]
[1680649493288,2.24003714,28195.0,28194.0,0.0168]
[1680649494038,1.88327375,28195.0,28194.0,0.0168]
[1680649494277,1.51057375,28195.0,28193.0,0.02959224]
[1680649494514,0.0755,28194.0,28193.0,0.02959224]
[1680649495906,0.0755,28194.0,28193.0,0.03059224]
[1680649496140,0.0755,28194.0,28193.0,0.001]
[1680649496605,0.0755,28194.0,28192.0,0.08517686]
[1680649496827,0.0755,28193.0,28192.0,0.08517686]
[1680649498505,0.0805,28193.0,28192.0,0.08517686]
[1680649499728,0.0804057,28193.0,28192.0,0.08499686]
[1680649499964,0.005,28193.0,28192.0,0.08499686]
[1680649500990,0.32944557,28194.0,28192.0,0.08499686]
[1680649501198,0.32944557,28194.0,28192.0,0.08599686]
[1680649501565,0.32948145,28194.0,28192.0,0.08599686]
[1680649501774,0.32962114,28194.0,28192.0,0.08599686]
[1680649501981,0.32962114,28194.0,28192.0,0.08499686]
[1680649502187,0.32962114,28194.0,28192.0,0.08599686]
[1680649503189,0.32944557,28194.0,28192.0,0.08599686]
[1680649503690,0.32944557,28194.0,28192.0,0.21354848]
[1680649504998,0.32962114,28194.0,28192.0,0.21354848]
[1680649505588,0.32944557,28194.0,28192.0,0.21354848]
[1680649507424,0.32944557,28194.0,28193.0,0.08499686]
[1680649507662,0.32962114,28194.0,28193.0,0.08499686]
[1680649509560,0.33462114,28194.0,28193.0,0.08499686]
[1680649511043,0.00517557,28194.0,28193.0,0.08499686]
[1680649511258,0.005,28194.0,28193.0,0.08499686]
[1680649513108,1.8944582,28195.0,28193.0,0.08499686]
[1680649513320,0.005,28194.0,28193.0,0.08499686]
[1680649513511,1.8944582,28195.0,28193.0,0.08499686]
[1680649513710,0.005,28194.0,28193.0,0.08499686]
[1680649514178,1.8944582,28195.0,28193.0,0.08499686]
[1680649514370,0.005,28194.0,28193.0,0.08499686]
[1680649514866,1.8944582,28195.0,28193.0,0.08499686]
[1680649515685,0.005,28194.0,28193.0,0.08499686]
[1680649515842,1.8944582,28195.0,28193.0,0.08499686]
[1680649516049,1.8994582,28195.0,28193.0,0.08499686]
[1680649516367,1.8944582,28195.0,28193.0,0.08499686]
[1680649516679,0.005,28194.0,28193.0,0.08499686]
[1680649516923,1.8944582,28195.0,28193.0,0.08499686]
[1680649517111,1.8994582,28195.0,28193.0,0.08499686]
[1680649518491,1.8944582,28195.0,28193.0,0.08499686]
[1680649519828,0.005,28194.0,28193.0,0.08499686]
[1680649520292,1.8189582,28195.0,28193.0,0.08499686]
[1680649520971,1.8189582,28195.0,28193.0,0.10932621]
[1680649521404,1.8239582,28195.0,28193.0,0.10932621]
[1680649522244,1.82387688,28195.0,28193.0,0.10932621]
[1680649523147,1.82387688,28195.0,28193.0,0.08499686]
[1680649524468,0.33962753,28194.0,28193.0,0.08499686]
[1680649524708,0.3398031,28194.0,28193.0,0.08499686]
[1680649526038,0.3448031,28194.0,28193.0,0.08499686]
[1680649529636,0.3448031,28194.0,28192.0,0.23667472]
[1680649529947,0.3448031,28194.0,28193.0,0.08499686]
[1680649534414,0.3448031,28194.0,28192.0,0.23667472]
[1680649534627,0.3448031,28194.0,28193.0,0.08499686]
[1680649538155,0.3448031,28194.0,28192.0,0.23667472]
[1680649538366,0.3448031,28194.0,28193.0,0.08499686]
[1680649539574,0.3398031,28194.0,28193.0,0.08499686]
[1680649541352,0.3398031,28194.0,28192.0,0.23667472]
[1680649541611,0.3448031,28194.0,28193.0,0.08499686]
[1680649543193,0.3448031,28194.0,28193.0,0.08492026]
[1680649545688,0.3448031,28194.0,28192.0,0.12767162]
[1680649545873,0.34462753,28194.0,28192.0,0.12755162]
[1680649546868,0.33962753,28194.0,28192.0,0.12755162]
[1680649547075,0.33962753,28194.0,28192.0,0.12855162]
[1680649549673,0.33962753,28194.0,28192.0,0.001]
[1680649549792,0.33962753,28194.0,28192.0,0.12855162]
[1680649550177,0.3398031,28194.0,28192.0,0.12855162]
[1680649550392,0.3398031,28194.0,28192.0,0.001]
[1680649550612,0.3398031,28194.0,28192.0,0.12855162]
[1680649553014,0.33962753,28194.0,28192.0,0.001]
[1680649553227,0.33962753,28194.0,28192.0,0.08607449]
[1680649553420,0.33962753,28194.0,28192.0,0.21362611]
[1680649555472,0.3398031,28194.0,28192.0,0.21362611]
[1680649556300,0.33962753,28194.0,28192.0,0.21362611]
[1680649559193,0.33962753,28194.0,28192.0,0.22958711]
[1680649559711,0.33962753,28194.0,28193.0,0.08507449]
[1680649559861,0.3398031,28194.0,28193.0,0.08507449]
[1680649561576,0.3448031,28194.0,28193.0,0.08507449]
[1680649563064,0.3448031,28194.0,28192.0,0.21274611]
[1680649563337,0.34462753,28194.0,28192.0,0.08507449]
[1680649563763,0.34456424,28194.0,28192.0,0.08513449]
[1680649564223,0.33956424,28194.0,28192.0,0.08507449]
[1680649564416,0.33956424,28194.0,28192.0,0.08613449]
[1680649564912,0.33956424,28194.0,28192.0,0.08607449]
[1680649565168,0.33956424,28194.0,28192.0,0.08613449]
[1680649566307,0.33956424,28194.0,28192.0,0.08607449]
[1680649566530,0.33956424,28194.0,28192.0,0.08613449]
[1680649566762,0.33956424,28194.0,28192.0,0.08607449]
[1680649566987,0.33956424,28194.0,28192.0,0.08613449]
[1680649567218,0.33956424,28194.0,28192.0,0.08607449]
[1680649568891,0.33956424,28194.0,28193.0,0.0113]
[1680649569989,0.41506424,28194.0,28193.0,0.0113]
[1680649570407,0.42006424,28194.0,28193.0,0.0113]
[1680649570635,0.41506424,28194.0,28193.0,0.0113]
[1680649570832,0.42006424,28194.0,28193.0,0.0113]
[1680649571125,0.41506424,28194.0,28193.0,0.0113]
[1680649571323,0.42006424,28194.0,28193.0,0.0113]
[1680649571632,0.41506424,28194.0,28193.0,0.0113]
[1680649571839,0.41519012,28194.0,28193.0,0.0113]
[1680649572039,0.42006424,28194.0,28193.0,0.0113]
[1680649573218,0.41506424,28194.0,28193.0,0.0113]
[1680649573437,0.42006424,28194.0,28193.0,0.0113]
[1680649573642,0.41506424,28194.0,28193.0,0.0113]
[1680649573853,0.42006424,28194.0,28193.0,0.0113]
[1680649575641,0.35072535,28193.0,28191.0,0.06330596]
[1680649575846,0.00017557,28193.0,28191.0,0.06330596]
[1680649576049,0.0805,28194.0,28192.0,0.0035]
[1680649576503,0.052746,28193.0,28192.0,0.0035]
[1680649576911,0.054031,28193.0,28192.0,0.0035]
[1680649577257,0.001,28193.0,28192.0,0.0035]
[1680649577472,0.0755,28194.0,28192.0,0.0035]
[1680649577689,0.0755,28194.0,28192.0,0.0045]
[1680649578484,0.41807794,28193.0,28192.0,0.0045]
[1680649578686,0.47077151,28193.0,28192.0,0.0035]
[1680649578894,0.47077151,28193.0,28192.0,0.0045]
[1680649579102,0.41825351,28193.0,28192.0,0.0035]
[1680649579463,0.41825351,28193.0,28192.0,0.0045]
[1680649583076,0.47301751,28193.0,28192.0,0.0045]
[1680649583275,0.41825351,28193.0,28192.0,0.0045]
[1680649594481,0.47206751,28193.0,28192.0,0.0045]
[1680649594693,0.41825351,28193.0,28192.0,0.0045]
[1680649597489,0.41801039,28193.0,28192.0,0.0045]
[1680649599879,0.49351039,28193.0,28192.0,0.0045]
[1680649600324,0.49368596,28193.0,28192.0,0.0045]
[1680649600745,0.49351039,28193.0,28192.0,0.0045]
[1680649604879,0.54716139,28193.0,28192.0,0.0045]
[1680649605067,0.54543039,28193.0,28192.0,0.0045]
[1680649605269,0.49351039,28193.0,28192.0,0.0045]
[1680649606431,0.49368596,28193.0,28192.0,0.0045]
[1680649606641,0.49351039,28193.0,28192.0,0.0045]
[1680649608783,1.02548201,28193.0,28191.0,0.08508453]
[1680649609061,1.01504178,28192.0,28188.0,0.00018]
[1680649609301,0.151,28189.0,28187.0,0.08508453]
[1680649609532,0.50561056,28188.0,28187.0,0.08508453]
[1680649609758,0.50561056,28188.0,28186.0,0.08526453]
[1680649609976,0.0755,28187.0,28186.0,0.08514453]
[1680649610195,0.41102226,28187.0,28186.0,0.08508453]
[1680649610421,0.41102226,28187.0,28185.0,0.00018]
[1680649610638,0.0755,28186.0,28184.0,0.08508453]
[1680649610855,0.0755,28186.0,28184.0,0.08514453]
[1680649611265,0.0755,28186.0,28184.0,0.12186392]
[1680649611477,0.0755,28186.0,28184.0,0.12192392]
[1680649611905,0.0755,28186.0,28184.0,0.12292392]
[1680649612536,0.0755,28186.0,28184.0,0.03783939]
[1680649612537,0.49236858,28186.0,28184.0,0.03783939]
[1680649612744,0.49236858,28186.0,28184.0,0.001]
[1680649613371,0.38837406,28185.0,28184.0,0.001]
[1680649613575,0.46377406,28185.0,28184.0,0.001]
[1680649613994,0.46394963,28185.0,28182.0,0.09537038]
[1680649614211,0.0755,28184.0,28181.0,0.05543758]
[1680649614869,0.0755,28184.0,28182.0,0.001]
[1680649615543,0.0755,28184.0,28182.0,0.00618153]
[1680649615744,0.0755,28184.0,28183.0,0.00710333]
[1680649616098,0.001,28184.0,28183.0,0.00710333]
[1680649616387,0.44105037,28186.0,28183.0,0.00670333]
[1680649617049,0.44105037,28186.0,28183.0,0.00770333]
[1680649617337,0.44105037,28186.0,28183.0,0.00670333]
[1680649617536,0.44705037,28186.0,28183.0,0.00670333]
[1680649618001,0.44705037,28186.0,28183.0,0.05670333]
[1680649618881,0.44105037,28186.0,28183.0,0.05670333]
[1680649619095,0.42817223,28185.0,28183.0,0.07070333]
[1680649619314,0.4283478,28185.0,28183.0,0.07070333]
[1680649619939,0.4283478,28185.0,28183.0,0.05670333]
[1680649620165,0.4293478,28185.0,28183.0,0.07070333]
[1680649621487,0.4283478,28185.0,28183.0,0.05670333]
[1680649621709,0.4293478,28185.0,28183.0,0.064]
[1680649624003,0.4293478,28185.0,28183.0,0.014]
[1680649624895,0.44164356,28184.0,28183.0,0.014]
[1680649626399,0.44164356,28184.0,28182.0,0.0914351]
[1680649626607,0.00017557,28185.0,28182.0,0.0914351]
[1680649626820,0.51296027,28186.0,28182.0,0.0914351]
[1680649627043,0.51313584,28186.0,28182.0,0.0914351]
[1680649627684,0.001,28184.0,28183.0,0.014]
[1680649627884,0.51313584,28186.0,28182.0,0.0914351]
[1680649628116,0.41656456,28185.0,28182.0,0.1114351]
[1680649628327,0.41674013,28185.0,28182.0,0.0914351]
[1680649628556,0.001,28184.0,28183.0,0.014]
[1680649628771,0.001,28184.0,28182.0,0.0914351]
[1680649628971,0.41674013,28185.0,28182.0,0.1114351]
[1680649629195,0.41774013,28185.0,28182.0,0.1114351]
[1680649629388,0.007093,28183.0,28182.0,0.0914351]
[1680649630508,0.007093,28183.0,28181.0,0.08486749]
[1680649630733,0.41691594,28183.0,28182.0,0.02]
[1680649630954,0.41691594,28183.0,28181.0,0.08486749]
[1680649631401,0.41791594,28183.0,28182.0,0.02]
[1680649632087,0.41791594,28183.0,28180.0,0.57563911]
[1680649632088,0.41691594,28183.0,28180.0,0.6605066]
[1680649632300,0.41791594,28183.0,28181.0,0.02]
[1680649632521,0.41691594,28183.0,28180.0,0.6605066]
[1680649632956,0.41691594,28183.0,28180.0,0.2180066]
[1680649633172,0.41709151,28183.0,28180.0,0.10200588]
[1680649634025,0.41809151,28183.0,28182.0,0.014]
[1680649634290,0.41709151,28183.0,28180.0,0.10200588]
[1680649634503,0.41809151,28183.0,28180.0,0.12900588]
[1680649634717,0.41709151,28183.0,28180.0,0.10200588]
[1680649634932,0.41809151,28183.0,28182.0,0.014]
[1680649635149,0.43847913,28183.0,28182.0,0.014]
[1680649635863,0.008093,28183.0,28181.0,0.015968]
[1680649636296,0.008093,28183.0,28180.0,0.091968]
[1680649636728,0.007093,28183.0,28180.0,0.065968]
[1680649636957,0.008093,28183.0,28182.0,0.007]
[1680649637171,0.008093,28183.0,28180.0,0.065968]
[1680649637389,0.009093,28183.0,28180.0,0.091968]
[1680649637611,0.007093,28183.0,28180.0,0.065968]
[1680649637945,0.008093,28183.0,28182.0,0.007]
[1680649638160,0.007093,28183.0,28180.0,0.065968]
[1680649638333,0.008093,28183.0,28180.0,0.086968]
[1680649638542,0.35887645,28183.0,28180.0,0.086968]
[1680649638750,0.35905202,28183.0,28180.0,0.086968]
[1680649639600,0.35805202,28183.0,28180.0,0.065968]
[1680649639767,0.35905202,28183.0,28182.0,0.007]
[1680649639969,0.35805202,28183.0,28181.0,0.015968]
[1680649640174,0.35905202,28183.0,28181.0,0.015968]